fUST/lending_fUST_20241023
["ID","MTS","AMOUNT","RATE_DAILY","PERIOD"]
[340681084,1729675845834,-264.542389,0.00015,2]
[340681085,1729675845845,-10936.2231942,0.00015,2]
[340681087,1729676000027,335321.35337172,0.00022,60]
[340681088,1729676197301,2922.0,0.0002031,120]
[340681089,1729676251243,-300.0,0.00011887,2]
[340681090,1729676251271,-24600.0,0.00011888,2]
[340681091,1729676253190,257.3541544,0.0001,2]
[340681092,1729676551070,-778.55,0.000174,31]
[340681093,1729676551107,-778.55,0.000174,31]
[340681094,1729676551144,-778.55,0.000174,31]
[340681095,1729676551181,-778.55,0.000174,31]
[340681096,1729676551222,-778.55,0.000174,31]
[340681097,1729676551263,-778.55,0.000174,31]
[340681098,1729676551307,-778.55,0.000174,31]
[340681099,1729676551347,-778.55,0.000174,31]
[340681100,1729676551384,-778.55,0.000174,31]
[340681101,1729676551422,-778.55,0.000174,31]
[340681102,1729676551459,-778.55,0.000174,31]
[340681103,1729676551497,-778.55,0.000174,31]
[340681104,1729676551534,-778.55,0.000174,31]
[340681105,1729676551572,-778.55,0.000174,31]
[340681106,1729676551610,-778.55,0.000174,31]
[340681107,1729676551648,-778.55,0.000174,31]
[340681108,1729676551759,-778.55,0.000197,31]
[340681109,1729676551797,-778.55,0.000197,31]
[340681110,1729676551835,-778.55,0.000197,31]
[340681111,1729676551874,-778.55,0.000197,31]
[340681112,1729676551910,-778.55,0.000197,31]
[340681113,1729676551948,-778.55,0.000197,31]
[340681114,1729676551988,-778.55,0.000197,31]
[340681115,1729676552026,-778.55,0.000197,31]
[340681116,1729676552064,-778.55,0.000197,31]
[340681117,1729676552101,-778.55,0.000197,31]
[340681118,1729676552139,-778.55,0.000197,31]
[340681119,1729676552176,-778.55,0.000197,31]
[340681120,1729676552214,-778.55,0.000197,31]
[340681121,1729676552250,-778.55,0.000197,31]
[340681122,1729676552290,-778.55,0.000197,31]
[340681123,1729676552328,-778.55,0.000197,31]
[340681124,1729676552364,-778.55,0.000197,31]
[340681125,1729676552399,-778.55,0.000197,31]
[340681126,1729676552436,-778.55,0.000197,31]
[340681127,1729676552473,-778.55,0.000197,31]
[340681128,1729676552510,-778.55,0.000197,31]
[340681129,1729676552551,-778.55,0.000197,31]
[340681130,1729676552599,-778.55,0.000197,31]
[340681131,1729676552643,-778.55,0.000197,31]
[340681132,1729676552698,-200.0,0.0002,30]
[340681133,1729676552743,-200.0,0.0002,30]
[340681134,1729676552787,-200.0,0.0002,30]
[340681135,1729676552830,-200.0,0.0002,30]
[340681136,1729676552871,-200.0,0.0002,30]
[340681137,1729676552914,-200.0,0.0002,30]
[340681138,1729676552955,-200.0,0.0002,30]
[340681139,1729676552999,-200.0,0.0002,30]
[340681140,1729676553042,-200.0,0.0002,30]
[340681141,1729676553087,-248.49,0.0002,30]
[340681142,1729676553220,-778.55,0.00022,31]
[340681143,1729676553268,-778.55,0.00022,31]
[340681144,1729676553315,-778.55,0.00022,31]
[340681145,1729676553360,-778.55,0.00022,31]
[340681146,1729676553412,-778.55,0.00022,31]
[340681147,1729676553459,-778.55,0.00022,31]
[340681148,1729676553512,-778.55,0.00022,31]
[340681149,1729676553561,-778.55,0.00022,31]
[340681150,1729676553617,-778.55,0.00022,31]
[340681151,1729676553668,-778.55,0.00022,31]
[340681152,1729676553714,-778.55,0.00022,31]
[340681153,1729676553762,-778.55,0.00022,31]
[340681154,1729676553808,-778.55,0.00022,31]
[340681155,1729676553856,-778.55,0.00022,31]
[340681156,1729676553900,-778.55,0.00022,31]
[340681157,1729676553945,-778.55,0.00022,31]
[340681158,1729676553995,-778.55,0.00022,31]
[340681159,1729676554042,-778.55,0.00022,31]
[340681160,1729676554087,-778.55,0.00022,31]
[340681161,1729676554137,-778.55,0.00022,31]
[340681162,1729676554181,-778.55,0.00022,31]
[340681163,1729676554225,-778.55,0.00022,31]
[340681164,1729676554269,-778.55,0.00022,31]
[340681165,1729676554314,-778.55,0.00022,31]
[340681166,1729676554376,-190.63522141,0.00022999,60]
[340681167,1729676554418,-500.0,0.0002331,30]
[340681168,1729676554463,-500.0,0.0002331,30]
[340681169,1729676554505,-500.0,0.0002331,30]
[340681170,1729676554544,-500.0,0.0002331,30]
[340681171,1729676554585,-500.0,0.0002331,30]
[340681172,1729676554626,-859.59040198,0.0002331,30]
[340681173,1729676554664,-200.0,0.000235,120]
[340681174,1729676554704,-155.0,0.000242,60]
[340681175,1729676554744,-778.55,0.000243,31]
[340681176,1729676554784,-778.55,0.000243,31]
[340681177,1729676554823,-778.55,0.000243,31]
[340681178,1729676554863,-778.55,0.000243,31]
[340681179,1729676554902,-778.55,0.000243,31]
[340681180,1729676554942,-778.55,0.000243,31]
[340681181,1729676554985,-778.55,0.000243,31]
[340681182,1729676555024,-778.55,0.000243,31]
[340681183,1729676555066,-778.55,0.000243,31]
[340681184,1729676555105,-778.55,0.000243,31]
[340681185,1729676555147,-778.55,0.000243,31]
[340681186,1729676555188,-778.55,0.000243,31]
[340681187,1729676555230,-778.55,0.000243,31]
[340681188,1729676555270,-778.55,0.000243,31]
[340681189,1729676555309,-778.55,0.000243,31]
[340681190,1729676555345,-778.55,0.000243,31]
[340681191,1729676555381,-778.55,0.000243,31]
[340681192,1729676555417,-778.55,0.000243,31]
[340681193,1729676555452,-778.55,0.000243,31]
[340681194,1729676555491,-778.55,0.000243,31]
[340681195,1729676555856,-778.55,0.000243,31]
[340681196,1729676555895,-778.55,0.000243,31]
[340681197,1729676555931,-778.55,0.000243,31]
[340681198,1729676555971,-778.55,0.000243,31]
[340681199,1729676556011,-315.1746,0.000248,120]
[340681200,1729676556048,-209.94610402,0.00025,30]
[340681201,1729676556085,-500.0,0.00025,30]
[340681202,1729676556122,-500.0,0.00025,30]
[340681203,1729676556158,-500.0,0.00025,30]
[340681204,1729676556194,-500.0,0.00025,30]
[340681205,1729676556230,-500.0,0.00025,30]
[340681206,1729676556265,-500.0,0.00025,30]
[340681207,1729676556302,-28697.27077306,0.00025,30]
[340681208,1729676556337,-155.0,0.000253,60]
[340681209,1729676556377,-778.55,0.000266,31]
[340681210,1729676556413,-778.55,0.000266,31]
[340681211,1729676556450,-778.55,0.000266,31]
[340681212,1729676556487,-778.55,0.000266,31]
[340681213,1729676556524,-778.55,0.000266,31]
[340681214,1729676556560,-778.55,0.000266,31]
[340681215,1729676556596,-778.55,0.000266,31]
[340681216,1729676556634,-778.55,0.000266,31]
[340681217,1729676556673,-778.55,0.000266,31]
[340681218,1729676556710,-778.55,0.000266,31]
[340681219,1729676556747,-778.55,0.000266,31]
[340681220,1729676556783,-778.55,0.000266,31]
[340681221,1729676556820,-22.16421,0.00027,120]
[340681222,1729676556858,-390.42901897,0.00027,30]
[340681223,1729676556892,-500.0,0.00027041,120]
[340681224,1729676556927,-500.0,0.00027041,120]
[340681225,1729676556965,-500.0,0.00027041,120]
[340681226,1729676557003,-996.45715072,0.00027671,30]
[340681227,1729676557040,-155.0,0.000278,120]
[340681228,1729676557076,-200.0,0.000282,120]
[340681229,1729676557111,-1062.0,0.00028493,31]
[340681230,1729676557148,-1062.0,0.00029041,33]
[340681231,1729676557183,-1234.0,0.00029041,120]
[340681232,1729676557218,-2900.98,0.0002928,30]
[340681233,1729676557255,-1062.0,0.00029589,35]
[340681234,1729676557289,-200.0,0.000296,120]
[340681235,1729676557324,-155.0,0.0002999,120]
[340681236,1729676557362,-3342.3847557,0.0003,30]
[340681237,1729676557398,-151.0,0.0003,120]
[340681238,1729676557433,-20651.08714166,0.0003,45]
[340681239,1729676557467,-614.22607446,0.0003,120]
[340681240,1729676557502,-162.0,0.0003,120]
[340681241,1729676557538,-498.0,0.0003,30]
[340681242,1729676557574,-1062.0,0.00030136,37]
[340681243,1729676557609,-11341.32232312,0.00030587,30]
[340681244,1729676557644,-1062.0,0.00030684,39]
[340681245,1729676557679,-3000.0,0.00031,30]
[340681246,1729676557713,-223.0,0.00031,120]
[340681247,1729676557749,-1000.0,0.00031,120]
[340681248,1729676557784,-223.38889,0.00031,120]
[340681249,1729676557819,-1571.1725,0.00031156,30]
[340681250,1729676557856,-151.0,0.00031205,120]
[340681251,1729676557893,-1062.0,0.00031232,41]
[340681252,1729676557929,-1062.0,0.0003178,43]
[340681253,1729676557968,-3000.0,0.00032,30]
[340681254,1729676558006,-164.0,0.00032,120]
[340681255,1729676558045,-155.0,0.0003218,120]
[340681256,1729676558082,-1062.0,0.00032328,45]
[340681257,1729676558120,-151.0,0.00032411,120]
[340681258,1729676558157,-197.957,0.000325,120]
[340681259,1729676558193,-197.958,0.000325,120]
[340681260,1729676558229,-509.99082537,0.00032876,60]
[340681261,1729676558267,-3483.85,0.00032876,120]
[340681262,1729676558303,-3483.85,0.00032876,120]
[340681263,1729676558339,-3483.85,0.00032876,120]
[340681264,1729676558374,-3483.85,0.00032876,120]
[340681265,1729676558408,-3483.85,0.00032876,120]
[340681266,1729676558442,-3483.85,0.00032876,120]
[340681267,1729676558476,-3483.85,0.00032876,120]
[340681268,1729676558511,-3483.85,0.00032876,120]
[340681269,1729676558547,-3483.85,0.00032876,120]
[340681270,1729676558582,-3483.85,0.00032876,120]
[340681271,1729676558618,-3483.85,0.00032876,120]
[340681272,1729676558654,-3483.85,0.00032876,120]
[340681273,1729676558690,-3483.85,0.00032876,120]
[340681274,1729676558726,-3483.85,0.00032876,120]
[340681275,1729676558762,-3483.85,0.00032876,120]
[340681276,1729676558797,-3483.85,0.00032876,120]
[340681277,1729676558831,-3483.85,0.00032876,120]
[340681278,1729676558866,-3483.85,0.00032876,120]
[340681279,1729676558900,-3483.85,0.00032876,120]
[340681280,1729676558934,-3483.85,0.00032876,120]
[340681281,1729676558970,-3483.85,0.00032876,120]
[340681282,1729676559005,-3483.85,0.00032876,120]
[340681283,1729676559040,-3483.85,0.00032876,120]
[340681284,1729676559075,-3483.87675885,0.00032876,120]
[340681285,1729676559111,-1062.0,0.00032876,47]
[340681286,1729676559147,-6250.0,0.00032877,120]
[340681287,1729676559182,-3000.0,0.00033,30]
[340681288,1729676559224,-500.04760316,0.00033,120]
[340681289,1729676559264,-1000.0,0.00033,120]
[340681290,1729676559305,-11341.32232312,0.00033087,30]
[340681291,1729676559345,-1062.0,0.00033424,49]
[340681292,1729676559381,-151.0,0.00033616,120]
[340681293,1729676559417,-10912.0,0.00033666,120]
[340681294,1729676559628,-469.0,0.00033666,120]
[340681295,1729676559664,-41049.9635617,0.000339,30]
[340681296,1729676559701,-1062.0,0.00033972,51]
[340681297,1729676559738,-170646.87587647,0.00034,120]
[340681298,1729676559774,-3000.0,0.00034,30]
[340681299,1729676559810,-150.0,0.00034,120]
[340681300,1729676559846,-107409.05839272,0.00034,120]
[340681301,1729676559884,-7866.15,0.00034246,120]
[340681302,1729676559920,-155.0,0.0003437,120]
[340681303,1729676559956,-1062.02547073,0.0003452,53]
[340681304,1729676559996,-1473.09525613,0.00034789,45]
[340681305,1729676560041,-151.0,0.00034822,120]
[340681306,1729676560077,-43001.29699554,0.00034849,30]
[340681307,1729676560112,-3000.09048806,0.00034849,30]
[340681308,1729676560147,-3000.09048806,0.00034849,30]
[340681309,1729676560183,-3000.09048806,0.00034849,30]
[340681310,1729676560222,-3000.09048806,0.00034849,30]
[340681311,1729676560257,-3000.09048806,0.00034849,30]
[340681312,1729676560294,-3000.09048806,0.00034849,30]
[340681313,1729676560332,-3000.09048806,0.00034849,30]
[340681314,1729676560369,-3000.09048806,0.00034849,30]
[340681315,1729676560406,-3000.09048806,0.00034849,30]
[340681316,1729676560443,-3000.09048806,0.00034849,30]
[340681317,1729676560481,-3000.09048806,0.00034849,30]
[340681318,1729676560520,-3000.09048806,0.00034849,30]
[340681319,1729676560564,-3000.09048806,0.00034849,30]
[340681320,1729676560604,-3000.09048806,0.00034849,30]
[340681321,1729676560642,-3000.09048806,0.00034849,30]
[340681322,1729676560678,-3000.09048806,0.00034849,30]
[340681323,1729676560714,-3000.09048806,0.00034849,30]
[340681324,1729676560750,-3000.09048806,0.00034849,30]
[340681325,1729676560786,-3000.09048806,0.00034849,30]
[340681326,1729676560822,-3000.0,0.00035,30]
[340681327,1729676560858,-2040.25486953,0.00035,120]
[340681328,1729676560894,-1000.03117247,0.00035,30]
[340681329,1729676560931,-1000.0,0.00035,30]
[340681330,1729676560967,-345.0,0.00035,30]
[340681331,1729676561004,-14796.45607462,0.00035,30]
[340681332,1729676561039,-200.0,0.00035,120]
[340681333,1729676561075,-300.0,0.00035,60]
[340681334,1729676561113,-400.0,0.00035,120]
[340681335,1729676561148,-10022.09,0.00035,30]
[340681336,1729676561184,-16500.0,0.00035,30]
[340681337,1729676561221,-10000.0,0.00035,30]
[340681338,1729676561257,-500.0,0.00035,120]
[340681339,1729676561293,-13920.0,0.00035,30]
[340681340,1729676561330,-5870.0,0.00035,30]
[340681341,1729676561371,-1985.68,0.00035068,118]
[340681342,1729676561406,-1985.68,0.00035068,118]
[340681343,1729676561443,-1985.68,0.00035068,118]
[340681344,1729676561480,-1985.68,0.00035068,118]
[340681345,1729676561517,-1985.68,0.00035068,118]
[340681346,1729676561554,-1985.68,0.00035068,118]
[340681347,1729676561590,-1985.68,0.00035068,118]
[340681348,1729676561628,-1985.68,0.00035068,118]
[340681349,1729676561668,-1985.68,0.00035068,118]
[340681350,1729676561707,-1985.68,0.00035068,118]
[340681351,1729676561745,-1985.68,0.00035068,118]
[340681352,1729676561781,-1985.68,0.00035068,118]
[340681353,1729676561818,-1985.68,0.00035068,118]
[340681354,1729676561855,-1985.68,0.00035068,118]
[340681355,1729676561890,-1985.68,0.00035068,118]
[340681356,1729676561927,-1985.68,0.00035068,118]
[340681357,1729676561965,-1985.68,0.00035068,118]
[340681358,1729676562003,-1985.68,0.00035068,118]
[340681359,1729676562042,-1985.68,0.00035068,118]
[340681360,1729676562077,-1985.68,0.00035068,118]
[340681361,1729676562113,-1985.68,0.00035068,118]
[340681362,1729676562150,-1985.68,0.00035068,118]
[340681363,1729676562185,-1985.68,0.00035068,118]
[340681364,1729676562221,-1985.69905033,0.00035068,118]
[340681365,1729676562259,-7866.15,0.00035205,120]
[340681366,1729676562296,-11341.32232312,0.00035587,30]
[340681367,1729676562333,-910.2583172,0.00035616,30]
[340681368,1729676562368,-10000.0,0.00035902,120]
[340681369,1729676562405,-300.0,0.00036,120]
[340681370,1729676562440,-2000.0,0.00036,30]
[340681371,1729676562477,-151.0,0.00036027,120]
[340681372,1729676562513,-7866.15,0.00036164,120]
[340681373,1729676562548,-154.24546891,0.000365,120]
[340681374,1729676562586,-155.0,0.0003656,120]
[340681375,1729676562623,-300.0,0.00037,120]
[340681376,1729676562660,-7866.15,0.00037123,120]
[340681377,1729676562697,-151.0,0.00037233,120]
[340681378,1729676562733,-126063.68898303,0.00037648,120]
[340681379,1729676562768,-437.0,0.000378,30]
[340681380,1729676562804,-1000.0,0.000378,120]
[340681381,1729676562839,-2000.0,0.00038,120]
[340681382,1729676562875,-300.0,0.00038,120]
[340681383,1729676562908,-2060.99629103,0.00038,30]
[340681384,1729676562942,-38043.9645445,0.00038,31]
[340681385,1729676562979,-7866.15,0.00038082,120]
[340681386,1729676563015,-11341.32232312,0.00038087,30]
[340681387,1729676563051,-500.0,0.00038356,60]
[340681388,1729676563087,-6250.0,0.00038356,120]
[340681389,1729676563124,-151.0,0.00038438,120]
[340681390,1729676563160,-17027.57603906,0.00038484,120]
[340681391,1729676563196,-155.0,0.0003875,120]
[340681392,1729676563232,-877063.24804105,0.000388,120]
[340681393,1729676570139,-122936.75195895,0.000388,120]
[340681394,1729676570177,-1000.0,0.000388,120]
[340681395,1729676570215,-145001.94855964,0.0003888,120]
[340681396,1729676570253,-8140.9821773,0.0003888,120]
[340681397,1729676570290,-3000.0,0.000389,120]
[340681398,1729676570327,-500.0,0.00038904,60]
[340681399,1729676570363,-972.18201622,0.00038904,90]
[340681400,1729676570400,-300.0,0.00039,120]
[340681401,1729676570435,-50000.0,0.00039,40]
[340681402,1729676570471,-150.0,0.00039,30]
[340681403,1729676570507,-10000.0,0.00039,30]
[340681404,1729676570543,-50000.0,0.00039,30]
[340681405,1729676570581,-7866.15,0.00039041,120]
[340681406,1729676570618,-500.0,0.00039452,60]
[340681407,1729676570655,-151.0,0.00039644,120]
[340681408,1729676570691,-533.441669,0.000398,120]
[340681409,1729676570727,-1000.0,0.000398,120]
[340681410,1729676570763,-3000.0,0.000399,120]
[340681411,1729676570798,-3001.61117063,0.000399,30]
[340681412,1729676570834,-1591945.93244826,0.0003999,90]
[340681413,1729676574791,-1000.0,0.00034798,90]
[340681414,1729676574828,-1000.0,0.00034798,90]
[340681415,1729676574865,-1000.0,0.00034798,120]
[340681416,1729676574902,-1000.0,0.00034798,120]
[340681417,1729676574939,-2324.93967609,0.00034798,30]
[340681418,1729676574977,-2492.22114502,0.00034798,120]
[340681419,1729676575013,-250000.0,0.00034798,60]
[340681420,1729676575048,-4415.76604832,0.00034798,60]
[340681421,1729676575084,-1485.0,0.00034798,120]
[340681422,1729676575120,-14999.99999999,0.00034798,30]
[340681423,1729676575167,-3239.34425915,0.00034798,120]
[340681424,1729676575210,-5715.10078664,0.00034798,120]
[340681425,1729676575249,-200.12204379,0.00034798,120]
[340681426,1729676575292,-1941.79145954,0.00034798,120]
[340681427,1729676575332,-249.00012013,0.00034798,30]
[340681428,1729676575372,-151.79160549,0.00034798,30]
[340681429,1729676575407,-346.2877685,0.00034798,120]
[340681430,1729676575442,-203.572942,0.00034798,30]
[340681431,1729676575479,-6856.94422677,0.00034798,120]
[340681432,1729676575515,-357.4,0.00034798,90]
[340681433,1729676575551,-357.4,0.00034798,120]
[340681434,1729676575590,-602.5719932,0.00034798,120]
[340681435,1729676575628,-2112.32289686,0.00034798,120]
[340681436,1729676575666,-386.8422511,0.00034798,120]
[340681437,1729676575702,-4600.8006386,0.00034798,31]
[340681438,1729676575739,-155.59774015,0.00034798,60]
[340681439,1729676575776,-989999.999999,0.00034798,120]
[340681440,1729676575813,-10000.0,0.00034798,120]
[340681441,1729676575850,-3000.0,0.00034798,111]
[340681442,1729676575887,-3000.0,0.00034798,113]
[340681443,1729676575922,-1735.19758616,0.00034798,35]
[340681444,1729676575958,-216.86395367,0.00034798,30]
[340681445,1729676575997,-175654.03763097,0.00034798,60]
[340681446,1729676581222,-2000000.0,0.0003999,90]
[340681447,1729676587147,-417054.06755174,0.0003999,90]
[340681448,1729676587187,-32132.86652947,0.0003999,120]
[340681449,1729676587227,-5000.0,0.0004,40]
[340681450,1729676587265,-1000.0,0.0004,30]
[340681451,1729676587300,-1000.0,0.0004,30]
[340681452,1729676587338,-1000.0,0.0004,30]
[340681453,1729676587373,-1000.0,0.0004,30]
[340681454,1729676587411,-1000.0,0.0004,30]
[340681455,1729676587447,-1000.0,0.0004,30]
[340681456,1729676587485,-1000.0,0.0004,30]
[340681457,1729676587523,-1007.4143,0.0004,30]
[340681458,1729676587559,-500.0,0.0004,30]
[340681459,1729676587597,-300.0,0.0004,120]
[340681460,1729676587634,-1000.0,0.0004,30]
[340681461,1729676587670,-500.0,0.0004,60]
[340681462,1729676587706,-281.17455919,0.0004,120]
[340681463,1729676587742,-4998.26067578,0.0004,30]
[340681464,1729676587782,-2948.6201107,0.0004,120]
[340681465,1729676587818,-1000.0,0.0004,30]
[340681466,1729676587853,-3083.05289257,0.0004,120]
[340681467,1729676587891,-150.0,0.0004,30]
[340681468,1729676587927,-3448.66738191,0.0004,120]
[340681469,1729676587963,-3460.46418929,0.0004,120]
[340681470,1729676588002,-737.4007878,0.0004,120]
[340681471,1729676588044,-5000.0,0.0004,120]
[340681472,1729676588085,-7500.0,0.0004,30]
[340681473,1729676588122,-182.38049063,0.0004,120]
[340681474,1729676588161,-1896.745846,0.0004,31]
[340681475,1729676588197,-500.27776446,0.0004,120]
[340681476,1729676588233,-2846.47913903,0.0004,120]
[340681477,1729676588272,-315.8135958,0.0004,120]
[340681478,1729676588310,-18368.14353216,0.0004,120]
[340681479,1729676588348,-158.00274223,0.0004,120]
[340681480,1729676588391,-1190.3381893,0.0004,120]
[340681481,1729676588426,-2500.0,0.0004,30]
[340681482,1729676588462,-1000.0,0.0004,120]
[340681483,1729676588500,-332.00013823,0.0004,30]
[340681484,1729676588536,-3371.0,0.0004,120]
[340681485,1729676588575,-258.22374092,0.0004,30]
[340681486,1729676588612,-5297.34654318,0.0004,60]
[340681487,1729676588652,-878.0,0.0004,120]
[340681488,1729676588689,-2130.96,0.0004,60]
[340681489,1729676588725,-7866.15,0.0004,120]
[340681490,1729676588761,-357745.72831981,0.00040498,120]
[340681491,1729676588799,-500.0,0.00040547,60]
[340681492,1729676588835,-514.29099504,0.00040548,120]
[340681493,1729676588873,-11341.32232312,0.00040587,30]
[340681494,1729676588911,-151.0,0.00040849,120]
[340681495,1729676588948,-155.0,0.0004094,120]
[340681496,1729676588990,-7866.15,0.00040958,120]
[340681497,1729676589027,-1325.06001366,0.00040966,58]
[340681498,1729676589063,-300.0,0.00041,120]
[340681499,1729676589101,-16189.70930967,0.00041,120]
[340681500,1729676589136,-155.0,0.00041,120]
[340681501,1729676589171,-200.0,0.00041,30]
[340681502,1729676589209,-4353.39357494,0.00041,30]
[340681503,1729676589249,-17634.63970762,0.00041,30]
[340681504,1729676589285,-152.0,0.00041041,31]
[340681505,1729676589321,-152.0,0.00041041,31]
[340681506,1729676589356,-152.0,0.00041041,31]
[340681507,1729676589391,-152.0,0.00041041,31]
[340681508,1729676589426,-500.0,0.00041095,60]
[340681509,1729676589462,-500.0,0.00041095,30]
[340681510,1729676589500,-603.36,0.00041096,30]
[340681511,1729676589538,-3528.66509831,0.00041096,31]
[340681512,1729676589576,-3528.66509831,0.00041096,31]
[340681513,1729676589612,-3528.66509831,0.00041096,31]
[340681514,1729676589647,-3528.66509831,0.00041096,31]
[340681515,1729676589683,-3528.66509831,0.00041096,31]
[340681516,1729676589719,-3528.66509831,0.00041096,31]
[340681517,1729676589756,-3528.66509831,0.00041096,31]
[340681518,1729676589792,-3528.66509831,0.00041096,31]
[340681519,1729676590015,-3528.66509831,0.00041096,31]
[340681520,1729676590053,-3528.66509831,0.00041096,31]
[340681521,1729676590089,-3528.66509831,0.00041096,31]
[340681522,1729676590125,-3528.66509831,0.00041096,31]
[340681523,1729676590164,-3528.66509831,0.00041096,31]
[340681524,1729676590200,-3528.66509831,0.00041096,31]
[340681525,1729676590236,-3528.66509831,0.00041096,31]
[340681526,1729676590274,-3528.66509831,0.00041096,31]
[340681527,1729676590311,-3528.66509831,0.00041096,31]
[340681528,1729676590348,-3528.66509831,0.00041096,31]
[340681529,1729676590388,-3528.66509831,0.00041096,31]
[340681530,1729676590423,-3528.66509831,0.00041096,31]
[340681531,1729676590459,-3528.66509831,0.00041096,31]
[340681532,1729676590496,-3528.66509831,0.00041096,31]
[340681533,1729676590533,-3528.66509831,0.00041096,31]
[340681534,1729676590570,-3528.66509831,0.00041096,31]
[340681535,1729676590607,-3528.66509831,0.00041096,31]
[340681536,1729676590644,-3528.66509831,0.00041096,31]
[340681537,1729676590680,-3528.66509831,0.00041096,31]
[340681538,1729676590714,-3528.66509831,0.00041096,31]
[340681539,1729676590748,-3528.66509831,0.00041096,31]
[340681540,1729676590785,-3528.66509831,0.00041096,31]
[340681541,1729676590821,-3528.66509831,0.00041096,31]
[340681542,1729676590857,-3528.66509831,0.00041096,31]
[340681543,1729676590893,-3528.66509831,0.00041096,31]
[340681544,1729676590928,-3528.66509831,0.00041096,31]
[340681545,1729676590964,-3528.66509831,0.00041096,31]
[340681546,1729676591002,-3528.66509831,0.00041096,31]
[340681547,1729676591038,-3528.66509831,0.00041096,31]
[340681548,1729676591075,-3528.66509831,0.00041096,31]
[340681549,1729676591110,-3528.66509831,0.00041096,31]
[340681550,1729676591145,-3528.66509831,0.00041096,31]
[340681551,1729676591181,-3528.66509831,0.00041096,31]
[340681552,1729676591221,-3528.66509831,0.00041096,31]
[340681553,1729676591261,-3528.66509831,0.00041096,31]
[340681554,1729676591302,-3528.66509831,0.00041096,31]
[340681555,1729676591342,-3528.66509831,0.00041096,31]
[340681556,1729676591378,-3528.66509831,0.00041096,31]
[340681557,1729676591416,-3528.66509831,0.00041096,31]
[340681558,1729676591451,-3528.66509831,0.00041096,31]
[340681559,1729676591486,-3528.66509831,0.00041096,31]
[340681560,1729676591522,-3528.66509831,0.00041096,31]
[340681561,1729676591558,-3528.66509831,0.00041096,31]
[340681562,1729676591594,-3528.66509831,0.00041096,31]
[340681563,1729676591633,-3528.66509831,0.00041096,31]
[340681564,1729676591670,-3528.66509831,0.00041096,31]
[340681565,1729676591706,-3528.66509831,0.00041096,31]
[340681566,1729676591744,-3528.66509831,0.00041096,31]
[340681567,1729676591783,-3528.66509831,0.00041096,31]
[340681568,1729676591823,-3528.66509831,0.00041096,31]
[340681569,1729676591859,-3528.66509831,0.00041096,31]
[340681570,1729676591901,-3528.66509831,0.00041096,31]
[340681571,1729676591936,-3528.66509831,0.00041096,31]
[340681572,1729676591974,-3528.66509831,0.00041096,31]
[340681573,1729676592010,-3528.66509831,0.00041096,31]
[340681574,1729676592047,-3528.66509831,0.00041096,31]
[340681575,1729676592084,-3528.66509831,0.00041096,31]
[340681576,1729676592122,-3528.66509831,0.00041096,31]
[340681577,1729676592161,-3528.66509831,0.00041096,31]
[340681578,1729676592197,-3493.37844731,0.00041096,31]
[340681579,1729676592233,-3493.37844731,0.00041096,31]
[340681580,1729676592272,-3493.37844731,0.00041096,31]
[340681581,1729676592311,-3493.37844731,0.00041096,31]
[340681582,1729676592349,-3493.37844731,0.00041096,31]
[340681583,1729676592390,-3493.37844731,0.00041096,31]
[340681584,1729676592427,-3493.37844731,0.00041096,31]